fUST/lending_fUST_20251205
["ID","MTS","AMOUNT","RATE_DAILY","PERIOD"]
[396256750,1764894639856,-500.0,0.00013492,2]
[396256751,1764894639865,-500.0,0.00013492,2]
[396256752,1764894639875,-500.0,0.00013492,2]
[396256753,1764894639885,-200.0,0.00013492,2]
[396256754,1764894639895,-500.0,0.00013492,2]
[396256755,1764894639905,-500.0,0.00013492,2]
[396256756,1764894639915,-500.0,0.00013492,2]
[396256757,1764894639925,-500.0,0.00013492,2]
[396256758,1764894639935,-159.53675695,0.00013492,2]
[396256759,1764894639945,-32209.20523143,0.000135,2]
[396256760,1764894639955,-151.0,0.000135,2]
[396256761,1764894639966,-151.0,0.000135,2]
[396256762,1764894639976,-199.0,0.00013572,2]
[396256763,1764894639986,-420.0,0.00013572,2]
[396256764,1764894639997,-151.0,0.000136,2]
[396256765,1764894640007,-1680.0,0.00013605,2]
[396256766,1764894640017,-300.0,0.00013673,2]
[396256767,1764894640027,-500.0,0.00013698,2]
[396256768,1764894640038,-500.0,0.00013698,2]
[396256769,1764894640048,-500.0,0.00013698,2]
[396256770,1764894640058,-500.0,0.00013698,2]
[396256771,1764894640068,-500.0,0.00013698,2]
[396256772,1764894640078,-500.0,0.00013698,2]
[396256773,1764894640087,-500.0,0.00013698,2]
[396256774,1764894640097,-500.0,0.00013698,2]
[396256775,1764894640107,-500.0,0.00013698,2]
[396256776,1764894640117,-500.0,0.00013698,2]
[396256777,1764894640126,-500.0,0.00013698,2]
[396256778,1764894640137,-500.0,0.00013698,2]
[396256779,1764894640146,-500.0,0.00013698,2]
[396256780,1764894640156,-500.0,0.00013698,2]
[396256781,1764894640166,-500.0,0.00013698,2]
[396256782,1764894640177,-154.72,0.00013698,2]
[396256783,1764894640187,-500.0,0.00013698,2]
[396256784,1764894640197,-500.0,0.00013698,2]
[396256785,1764894640207,-500.0,0.00013698,2]
[396256786,1764894640217,-500.0,0.00013698,2]
[396256787,1764894640226,-500.0,0.00013698,2]
[396256788,1764894640236,-500.0,0.00013698,2]
[396256789,1764894640259,-500.0,0.00013698,2]
[396256790,1764894640271,-500.0,0.00013698,2]
[396256791,1764894640280,-500.0,0.00013698,2]
[396256792,1764894640291,-500.0,0.00013698,2]
[396256793,1764894640302,-532.74449047,0.00013698,2]
[396256794,1764894640313,-311.421502,0.00013699,2]
[396256795,1764894640323,-515.77906,0.00013699,2]
[396256796,1764894640334,-1000.0,0.00013699,2]
[396256797,1764894640344,-500.0,0.00013699,2]
[396256798,1764894640354,-500.44637556,0.00013699,2]
[396256799,1764894640365,-500.0,0.00013699,2]
[396256800,1764894640374,-500.0,0.00013699,2]
[396256801,1764894640384,-500.5009845,0.00013699,2]
[396256802,1764894640394,-500.17028465,0.00013699,2]
[396256803,1764894640404,-246.89742218,0.00013699,2]
[396256804,1764894640414,-500.0,0.00013699,2]
[396256805,1764894640424,-501.26862856,0.00013699,2]
[396256806,1764894640434,-500.0,0.00013699,2]
[396256807,1764894640444,-225.25897849,0.00013699,2]
[396256808,1764894640454,-500.0,0.00013699,2]
[396256809,1764894640464,-500.0,0.00013699,2]
[396256810,1764894640474,-500.59088644,0.00013699,2]
[396256811,1764894640484,-501.69448651,0.00013699,2]
[396256812,1764894640494,-554.95919466,0.00013699,2]
[396256813,1764894640504,-501.86634109,0.00013699,2]
[396256814,1764894640514,-500.53883743,0.00013699,2]
[396256815,1764894640524,-500.25387416,0.00013699,2]
[396256816,1764894640534,-500.32719085,0.00013699,2]
[396256817,1764894640545,-500.0,0.00013699,2]
[396256818,1764894640555,-500.0,0.00013699,2]
[396256819,1764894640564,-500.0,0.00013699,2]
[396256820,1764894640574,-500.0,0.00013699,2]
[396256821,1764894640584,-522.6924182,0.00013699,2]
[396256822,1764894640594,-501.95521673,0.00013699,2]
[396256823,1764894640607,-500.0,0.00013699,2]
[396256824,1764894640617,-500.58104643,0.00013699,2]
[396256825,1764894640627,-500.0,0.00013699,2]
[396256826,1764894640636,-500.0,0.00013699,2]
[396256827,1764894640646,-500.0,0.00013699,2]
[396256828,1764894640655,-500.0,0.00013699,2]
[396256829,1764894640665,-500.0,0.00013699,2]
[396256830,1764894640674,-500.0,0.00013699,2]
[396256831,1764894640684,-500.0,0.00013699,2]
[396256832,1764894640693,-500.0,0.00013699,2]
[396256833,1764894640703,-500.77851331,0.00013699,2]
[396256834,1764894640713,-192.2491804,0.00013699,2]
[396256835,1764894640722,-500.0,0.00013699,2]
[396256836,1764894640732,-500.0,0.00013699,2]
[396256837,1764894640742,-151.0,0.00013699,2]
[396256838,1764894640752,-151.0,0.00013699,2]
[396256839,1764894640764,-151.0,0.00013699,2]
[396256840,1764894640774,-151.0,0.00013699,2]
[396256841,1764894640783,-151.0,0.00013699,2]
[396256842,1764894640794,-151.0904865,0.00013699,2]
[396256843,1764894640803,-160.0,0.00013699,2]
[396256844,1764894640814,-940.1338,0.00013699,2]
[396256845,1764894640824,-151.0,0.000137,2]
[396256846,1764894640834,-151.0,0.000137,2]
[396256847,1764894640843,-300.0,0.00013769,2]
[396256848,1764894640853,-300.0,0.00013769,2]
[396256849,1764894640862,-300.0,0.00013769,2]
[396256850,1764894640872,-300.0,0.00013769,2]
[396256851,1764894640881,-300.0,0.00013769,2]
[396256852,1764894640892,-300.0,0.00013769,2]
[396256853,1764894640902,-300.0,0.00013769,2]
[396256854,1764894640912,-300.0,0.00013769,2]
[396256855,1764894640922,-300.0,0.00013769,2]
[396256856,1764894640931,-300.0,0.00013769,2]
[396256857,1764894640941,-300.0,0.00013769,2]
[396256858,1764894640951,-300.0,0.00013769,2]
[396256859,1764894640960,-300.0,0.00013769,2]
[396256860,1764894640970,-300.0,0.00013769,2]
[396256861,1764894640979,-300.0,0.00013769,2]
[396256862,1764894640988,-600.0,0.00013769,2]
[396256863,1764894640997,-500.0,0.00013821,2]
[396256864,1764894641007,-1000.0,0.00013821,2]
[396256865,1764894641017,-1000.0,0.00013821,2]
[396256866,1764894641027,-1000.0,0.00013821,2]
[396256867,1764894641037,-500.0,0.00013821,2]
[396256868,1764894641048,-500.0,0.00013821,2]
[396256869,1764894641058,-501.44089719,0.00013821,2]
[396256870,1764894641068,-1000.0,0.00013821,2]
[396256871,1764894641077,-1000.0,0.00013821,2]
[396256872,1764894641086,-1000.0,0.00013821,2]
[396256873,1764894641096,-1000.0,0.00013821,2]
[396256874,1764894641105,-500.0,0.00013821,2]
[396256875,1764894641116,-1000.0,0.00013821,2]
[396256876,1764894641125,-151.0,0.00013836,2]
[396256877,1764894641135,-151.0,0.00013973,2]
[396256878,1764894641144,-151.0,0.00014,2]
[396256879,1764894641154,-151.0,0.0001404,2]
[396256880,1764894641164,-200.0,0.0001404,2]
[396256881,1764894641175,-198.0,0.0001411,2]
[396256882,1764894641185,-246.31078501,0.00014184,2]
[396256883,1764894641195,-151.0,0.000142,2]
[396256884,1764894641204,-600.0,0.00014221,2]
[396256885,1764894641213,-1065.22927729,0.00014224,2]
[396256886,1764894641223,-500.0,0.00014247,2]
[396256887,1764894641232,-1000.0,0.00014247,2]
[396256888,1764894641241,-1000.0,0.00014247,2]
[396256889,1764894641251,-500.0,0.00014247,2]
[396256890,1764894641264,-500.81557634,0.00014247,2]
[396256891,1764894641273,-500.0,0.00014247,2]
[396256892,1764894641283,-1000.0,0.00014247,2]
[396256893,1764894641293,-500.92922304,0.00014247,2]
[396256894,1764894641303,-500.0,0.00014247,2]
[396256895,1764894641313,-260.0,0.00014247,2]
[396256896,1764894641322,-228.97576248,0.00014305,2]
[396256897,1764894641332,-270.20918547,0.0001433,7]
[396256898,1764894641342,-519.85464239,0.00014368,2]
[396256899,1764894641352,-940.95229119,0.00014368,2]
[396256900,1764894641361,-1500.0,0.00014368,2]
[396256901,1764894641371,-500.0,0.00014368,2]
[396256902,1764894641380,-1500.0,0.00014368,2]
[396256903,1764894641389,-929.83383592,0.00014368,2]
[396256904,1764894641399,-151.0,0.000144,2]
[396256905,1764894641409,-151.0,0.000144,2]
[396256906,1764894641419,-780.00791751,0.00014447,2]
[396256907,1764894641428,-293.03711322,0.00014588,2]
[396256908,1764894641437,-200.0,0.00014588,2]
[396256909,1764894641447,-151.0,0.0001459,2]
[396256910,1764894641456,-35130.6202416,0.0001459,2]
[396256911,1764894641467,-552.87069622,0.00014623,7]
[396256912,1764894641476,-780.00791751,0.00014679,2]
[396256913,1764894641486,-900.0,0.00014768,2]
[396256914,1764894641496,-406.46602424,0.0001477,7]
[396256915,1764894641505,-500.0,0.00014795,2]
[396256916,1764894641515,-500.0,0.00014795,2]
[396256917,1764894641525,-500.0,0.00014795,2]
[396256918,1764894641534,-1000.0,0.00014795,2]
[396256919,1764894641545,-500.0,0.00014795,2]
[396256920,1764894641554,-151.0,0.000148,2]
[396256921,1764894641565,-587.0,0.00014894,2]
[396256922,1764894641574,-5523.0,0.00014899,2]
[396256923,1764894641584,-780.00791751,0.0001491,2]
[396256924,1764894641594,-2000.0,0.00014916,2]
[396256925,1764894641603,-200.83580608,0.00014999,2]
[396256926,1764894641613,-200.0,0.00014999,2]
[396256927,1764894641623,-160.0,0.00014999,2]
[396256928,1764894641632,-123961.2693333,0.00015,7]
[396256929,1764894641642,-202.0,0.00015,5]
[396256930,1764894641651,-151.0,0.00015,2]
[396256931,1764894641660,-151.0,0.00015,2]
[396256932,1764894641669,-152.970532,0.00015,2]
[396256933,1764894641680,-336.565536,0.00015,2]
[396256934,1764894641689,-336.565536,0.00015,2]
[396256935,1764894641699,-151.0,0.00015,2]
[396256936,1764894641708,-336.565536,0.00015,2]
[396256937,1764894641718,-336.565536,0.00015,2]
[396256938,1764894641727,-151.867436,0.00015,2]
[396256939,1764894641736,-576.17360743,0.00015,2]
[396256940,1764894641745,-529.43604129,0.00015,3]
[396256941,1764894641755,-192840.08258208,0.00015,10]
[396256942,1764894641764,-151.883784,0.00015,2]
[396256943,1764894641773,-151.0,0.00015,2]
[396256944,1764894641783,-151.0,0.00015,2]
[396256945,1764894641792,-151.0,0.00015,2]
[396256946,1764894641802,-151.0,0.00015,2]
[396256947,1764894641811,-151.0,0.00015,2]
[396256948,1764894641820,-151.0,0.00015,2]
[396256949,1764894641829,-297.4018443,0.00015007,2]
[396256950,1764894641840,-800.86132026,0.00015068,2]
[396256951,1764894641849,-151.0,0.000151,2]
[396256952,1764894641858,-1065.22927729,0.00015121,2]
[396256953,1764894641868,-200.0,0.00015136,2]
[396256954,1764894641877,-780.00791751,0.00015141,2]
[396256955,1764894641887,-720.0,0.00015146,2]
[396256956,1764894641897,-272.79843418,0.00015238,2]
[396256957,1764894641907,-198.24526551,0.00015311,2]
[396256958,1764894641917,-1200.0,0.00015316,2]
[396256959,1764894641926,-265.45,0.00015342,2]
[396256960,1764894641936,-780.00791751,0.00015372,2]
[396256961,1764894641945,-643.284,0.0001553,2]
[396256962,1764894642185,-1359.0,0.0001553,2]
[396256963,1764894642195,-414.0,0.0001556,2]
[396256964,1764894642205,-780.00791751,0.00015603,2]
[396256965,1764894642215,-200.0,0.00015684,2]
[396256966,1764894642224,-3897.05739869,0.00015748,2]
[396256967,1764894642234,-151.0,0.000158,2]
[396256968,1764894642243,-780.78792543,0.00015834,2]
[396256969,1764894642254,-1500.0,0.00015864,2]
[396256970,1764894642265,-500.0,0.0001589,2]
[396256971,1764894642274,-1065.22927729,0.00016017,2]
[396256972,1764894642283,-817.6612136,0.00016164,2]
[396256973,1764894642292,-283.88361662,0.00016184,2]
[396256974,1764894642302,-200.0,0.00016232,2]
[396256975,1764894642311,-823.0,0.00016344,2]
[396256976,1764894642321,-151.0,0.000164,2]
[396256977,1764894642331,-1800.0,0.00016412,2]
[396256978,1764894642340,-272.12483689,0.00016418,2]
[396256979,1764894642349,-200.0,0.00016437,2]
[396256980,1764894642358,-160.31852274,0.00016437,2]
[396256981,1764894642368,-300.0,0.00016438,2]
[396256982,1764894642377,-200.0,0.00016438,2]
[396256983,1764894642386,-300.0,0.00016438,2]
[396256984,1764894642395,-300.0,0.00016438,2]
[396256985,1764894642404,-400.0,0.00016438,2]
[396256986,1764894642414,-513.56,0.00016438,2]
[396256987,1764894642423,-513.56,0.00016438,2]
[396256988,1764894642433,-513.56,0.00016438,2]
[396256989,1764894642442,-513.56,0.00016438,2]
[396256990,1764894642450,-513.56,0.00016438,2]
[396256991,1764894642460,-513.56,0.00016438,2]
[396256992,1764894642470,-513.56,0.00016438,2]
[396256993,1764894642479,-513.56,0.00016438,2]
[396256994,1764894642489,-513.56,0.00016438,2]
[396256995,1764894642498,-513.56,0.00016438,2]
[396256996,1764894642507,-513.56,0.00016438,2]
[396256997,1764894642516,-513.56,0.00016438,2]
[396256998,1764894642527,-513.56,0.00016438,2]
[396256999,1764894642536,-513.56,0.00016438,2]
[396257000,1764894642546,-513.56,0.00016438,2]
[396257001,1764894642555,-513.56,0.00016438,2]
[396257002,1764894642565,-513.56,0.00016438,2]
[396257003,1764894642574,-513.56,0.00016438,2]
[396257004,1764894642584,-513.56,0.00016438,2]
[396257005,1764894642593,-513.56,0.00016438,2]
[396257006,1764894642602,-513.56,0.00016438,2]
[396257007,1764894642612,-513.56,0.00016438,2]
[396257008,1764894642621,-513.56,0.00016438,2]
[396257010,1764894642630,-513.66743001,0.00016438,2]
[396257011,1764894642639,-163.277685,0.00016438,2]
[396257012,1764894642648,-151.0,0.00016438,2]
[396257013,1764894642657,-151.0,0.00016438,2]
[396257014,1764894642667,-151.0,0.00016438,2]
[396257015,1764894642677,-151.0,0.00016438,2]
[396257016,1764894642686,-151.0,0.00016438,2]
[396257017,1764894642695,-151.0,0.00016438,2]
[396257018,1764894642705,-151.0,0.00016438,2]
[396257019,1764894642714,-151.0,0.00016438,2]
[396257020,1764894642723,-151.0,0.00016438,2]
[396257021,1764894642734,-151.0,0.00016438,2]
[396257022,1764894642744,-211.667936,0.00016438,2]
[396257023,1764894642754,-151.0,0.00016438,2]
[396257024,1764894642763,-151.0,0.00016438,2]
[396257025,1764894642773,-151.0,0.00016438,2]
[396257026,1764894642782,-151.0,0.00016438,2]
[396257027,1764894642791,-151.0,0.00016438,2]
[396257028,1764894642801,-151.0,0.00016438,2]
[396257029,1764894642810,-151.0,0.00016438,2]
[396257030,1764894642820,-151.0,0.00016438,2]
[396257031,1764894642829,-151.0,0.00016438,2]
[396257032,1764894642838,-151.0,0.00016438,2]
[396257033,1764894642847,-151.0,0.00016438,2]
[396257035,1764894642856,-151.0,0.00016438,2]
[396257036,1764894642865,-152.460499,0.00016438,2]
[396257037,1764894642874,-151.0,0.00016438,2]
[396257038,1764894642883,-151.0,0.00016438,2]
[396257039,1764894642892,-151.0,0.00016438,2]
[396257041,1764894642902,-151.0,0.00016438,2]
[396257043,1764894642911,-151.0,0.00016438,2]
[396257045,1764894642920,-151.0,0.00016438,2]
[396257046,1764894642929,-151.844056,0.00016438,2]
[396257047,1764894642939,-151.0,0.00016438,2]
[396257049,1764894642948,-151.0,0.00016438,2]
[396257050,1764894642958,-151.0,0.00016438,2]
[396257052,1764894642969,-151.0,0.00016438,2]
[396257053,1764894642978,-151.0,0.00016438,2]
[396257054,1764894642987,-151.0,0.00016438,2]
[396257056,1764894642997,-151.0,0.00016438,2]
[396257057,1764894643007,-151.0,0.00016438,2]
[396257058,1764894643017,-151.0,0.00016438,2]
[396257059,1764894643028,-151.0,0.00016438,2]
[396257060,1764894643038,-151.0,0.00016438,2]
[396257061,1764894643048,-151.0,0.00016438,2]
[396257062,1764894643058,-151.0,0.00016438,2]
[396257063,1764894643068,-151.0,0.00016438,2]
[396257064,1764894643077,-198.037506,0.00016438,2]
[396257065,1764894643086,-151.0,0.00016438,2]
[396257066,1764894643095,-151.0,0.00016438,2]
[396257067,1764894643105,-151.0,0.00016438,2]
[396257069,1764894643114,-151.0,0.00016438,2]
[396257070,1764894643123,-151.0,0.00016438,2]
[396257071,1764894643132,-151.0,0.00016438,2]
[396257072,1764894643142,-151.0,0.00016438,2]
[396257073,1764894643151,-151.0,0.00016438,2]
[396257074,1764894643160,-151.0,0.00016438,2]
[396257075,1764894643169,-151.0,0.00016438,2]
[396257076,1764894643179,-151.0,0.00016438,2]
[396257077,1764894643191,-151.0,0.00016438,2]
[396257078,1764894643201,-151.0,0.00016438,2]
[396257079,1764894643212,-151.0,0.00016438,2]
[396257080,1764894643222,-216.17694,0.00016438,2]
[396257081,1764894643234,-758.481007,0.00016438,2]
[396257082,1764894643253,-758.481007,0.00016438,2]
[396257083,1764894643267,-151.0,0.00016438,2]
[396257084,1764894643277,-151.0,0.00016438,2]
[396257085,1764894643287,-758.481007,0.00016438,2]
[396257086,1764894643307,-758.481007,0.00016438,2]
[396257087,1764894643317,-758.481007,0.00016438,2]
[396257088,1764894643327,-758.481007,0.00016438,2]
[396257089,1764894643341,-758.481007,0.00016438,2]
[396257090,1764894643354,-758.481007,0.00016438,2]
[396257091,1764894643365,-1828.62935,0.00016438,2]
[396257092,1764894643374,-1828.62935,0.00016438,2]
[396257093,1764894643384,-1828.62935,0.00016438,2]
[396257094,1764894643394,-1828.62935,0.00016438,2]
[396257095,1764894643404,-1828.62935,0.00016438,2]
[396257096,1764894643413,-1828.62935,0.00016438,2]
[396257097,1764894643422,-151.0,0.00016438,2]
[396257098,1764894643431,-1828.62935,0.00016438,2]
[396257099,1764894643440,-151.0,0.00016438,2]
[396257100,1764894643450,-1828.62935,0.00016438,2]
[396257101,1764894643459,-151.0,0.00016438,2]
[396257102,1764894643468,-151.0,0.00016438,2]
[396257103,1764894643477,-245.635236,0.00016438,2]
[396257104,1764894643486,-245.635236,0.00016438,2]
[396257105,1764894643496,-245.635236,0.00016438,2]
[396257106,1764894643505,-245.635236,0.00016438,2]
[396257107,1764894643514,-500.0,0.00016438,2]
[396257108,1764894643524,-399.12955785,0.00016499,2]
[396257109,1764894643533,-864.0,0.0001666,2]
[396257110,1764894643543,-356.84147792,0.00016663,2]
[396257111,1764894643553,-408.09524406,0.00016774,2]
[396257112,1764894643562,-200.0,0.0001678,2]
[396257113,1764894643571,-300.0,0.0001688,2]
[396257114,1764894643580,-1065.22927729,0.00016914,2]
[396257115,1764894643590,-316.80415791,0.0001696,2]
[396257116,1764894643601,-500.0,0.00016986,2]
[396257117,1764894643610,-399.12955785,0.00017,7]
[396257118,1764894643620,-151.0,0.000171,2]
[396257119,1764894643629,-424.9775401,0.00017281,2]
[396257120,1764894643638,-227.72131139,0.00017328,2]
[396257121,1764894643649,-500.01,0.00017534,2]
[396257122,1764894643658,-310.68881378,0.00017761,2]
[396257123,1764894643667,-200.0,0.00017799,2]
[396257124,1764894643676,-151.0,0.000178,2]
[396257125,1764894643685,-151.0,0.000178,2]
[396257126,1764894643695,-258.859192,0.000178,2]
[396257127,1764894643703,-235.053624,0.000178,2]
[396257128,1764894643712,-235.053624,0.000178,2]
[396257129,1764894643722,-156.16907,0.000178,2]
[396257130,1764894643732,-235.053624,0.000178,2]
[396257131,1764894643741,-156.16907,0.000178,2]
[396257132,1764894643751,-235.053624,0.000178,2]
[396257133,1764894643760,-156.16907,0.000178,2]
[396257134,1764894643770,-151.0,0.000178,2]
[396257135,1764894643779,-156.16907,0.000178,2]
[396257136,1764894643788,-151.0,0.000178,2]
[396257137,1764894643798,-151.0,0.000178,2]
[396257138,1764894643807,-151.0,0.000178,2]
[396257139,1764894643815,-151.0,0.000178,2]
[396257140,1764894643825,-151.0,0.000178,2]
[396257141,1764894643834,-151.0,0.000178,2]
[396257142,1764894643843,-151.0,0.000178,2]
[396257143,1764894643853,-151.0,0.000178,2]
[396257144,1764894643862,-151.0,0.000178,2]
[396257145,1764894643871,-151.0,0.000178,2]
[396257146,1764894643880,-151.0,0.000178,2]
[396257147,1764894643890,-151.0,0.000178,2]
[396257148,1764894643900,-151.0,0.000178,2]
[396257149,1764894643909,-151.0,0.000178,2]
[396257150,1764894643919,-151.0,0.000178,2]
[396257151,1764894643928,-151.0,0.000178,2]
[396257152,1764894643938,-336.565536,0.000178,2]
[396257153,1764894643947,-336.565536,0.000178,2]
[396257154,1764894643956,-151.0,0.000178,2]
[396257155,1764894643966,-336.565536,0.000178,2]
[396257156,1764894643975,-336.565536,0.000178,2]
[396257157,1764894643985,-151.0,0.000178,2]
[396257158,1764894643994,-151.0,0.000178,2]
[396257159,1764894644003,-151.0,0.000178,2]
[396257160,1764894644013,-151.0,0.000178,2]
[396257161,1764894644024,-151.0,0.000178,2]
[396257162,1764894644033,-151.0,0.000178,2]
[396257163,1764894644041,-151.0,0.000178,2]
[396257164,1764894644050,-151.0,0.000178,2]
[396257165,1764894644059,-151.0,0.000178,2]
[396257166,1764894644069,-151.0,0.000178,2]
[396257167,1764894644078,-151.0,0.000178,2]
[396257168,1764894644087,-151.0,0.000178,2]
[396257169,1764894644096,-151.0,0.000178,2]
[396257170,1764894644106,-151.0,0.000178,2]
[396257171,1764894644122,-151.0,0.000178,2]
[396257172,1764894644131,-123791.22028003,0.000178,3]
[396257173,1764894644141,-399.12955785,0.000178,3]
[396257174,1764894644150,-151.0,0.000178,2]
[396257175,1764894644160,-758.481007,0.000178,2]
[396257176,1764894644169,-151.0,0.000178,2]
[396257177,1764894644178,-758.481007,0.000178,2]
[396257178,1764894644188,-758.481007,0.000178,2]
[396257179,1764894644198,-758.481007,0.000178,2]
[396257180,1764894644208,-1828.62935,0.000178,2]
[396257181,1764894644217,-1828.62935,0.000178,2]
[396257182,1764894644226,-1828.62935,0.000178,2]
[396257183,1764894644235,-151.0,0.000178,2]
[396257184,1764894644244,-1828.62935,0.000178,2]
[396257185,1764894644255,-151.0,0.000178,2]
[396257186,1764894644265,-151.0,0.000178,2]
[396257187,1764894644275,-171.547669,0.000178,2]
[396257188,1764894644286,-151.0,0.000178,2]
[396257189,1764894644296,-245.635236,0.000178,2]
[396257190,1764894644306,-151.0,0.000178,2]
[396257191,1764894644315,-245.635236,0.000178,2]
[396257192,1764894644323,-151.0,0.000178,2]
[396257193,1764894644334,-245.635236,0.000178,2]
[396257194,1764894644343,-151.0,0.000178,2]
[396257195,1764894644353,-245.635236,0.000178,2]
[396257196,1764894644362,-1065.22927729,0.0001781,2]
[396257197,1764894644373,-231.9745217,0.00017833,2]
[396257198,1764894644383,-1152.0,0.00017936,2]
[396257199,1764894644393,-319.99999999,0.00018,2]
[396257200,1764894644403,-399.12955785,0.00018,10]
[396257201,1764894644413,-633.75046478,0.00018015,2]
[396257202,1764894644423,-465.92817007,0.00018113,2]
[396257203,1764894644432,-2920.0,0.00018114,2]
[396257204,1764894644442,-2920.0,0.00018162,2]
[396257205,1764894644452,-321.45644823,0.00018184,2]
[396257206,1764894644461,-166.32803069,0.0001819,2]
[396257207,1764894644471,-2920.0,0.00018192,2]
[396257208,1764894644480,-2920.0,0.00018199,2]
[396257209,1764894644489,-2920.0,0.00018239,2]
[396257210,1764894644499,-2920.0,0.00018273,2]
[396257211,1764894644508,-2920.0,0.00018289,2]
[396257212,1764894644517,-399.12955785,0.000183,3]
[396257213,1764894644527,-2920.0,0.00018302,2]
[396257214,1764894644536,-1000.0,0.00018327,2]
[396257215,1764894644546,-2920.0,0.00018347,2]
[396257216,1764894644555,-2920.0,0.00018399,2]
[396257217,1764894644566,-2920.0,0.00018471,2]
[396257218,1764894644576,-1358.0,0.0001853,2]
[396257219,1764894644585,-414.0,0.0001856,2]
[396257220,1764894644595,-151.0,0.00018579,2]
[396257221,1764894644605,-151.0,0.00018579,2]
[396257222,1764894644615,-235.053624,0.00018579,2]
[396257223,1764894644624,-235.053624,0.00018579,2]
[396257224,1764894644634,-156.16907,0.00018579,2]
[396257225,1764894644643,-235.053624,0.00018579,2]
[396257226,1764894644653,-156.16907,0.00018579,2]
[396257227,1764894644662,-235.053624,0.00018579,2]
[396257228,1764894644672,-156.16907,0.00018579,2]
[396257229,1764894644682,-151.0,0.00018579,2]
[396257230,1764894644697,-156.16907,0.00018579,2]
[396257231,1764894644717,-151.0,0.00018579,2]
[396257232,1764894644730,-151.0,0.00018579,2]
[396257233,1764894644739,-151.0,0.00018579,2]
[396257234,1764894644750,-151.0,0.00018579,2]
[396257235,1764894644759,-151.0,0.00018579,2]
[396257236,1764894644768,-151.0,0.00018579,2]
[396257237,1764894644778,-151.0,0.00018579,2]
[396257238,1764894644787,-151.0,0.00018579,2]
[396257239,1764894644796,-151.0,0.00018579,2]
[396257240,1764894644807,-5205.0,0.00018579,2]
[396257241,1764894644992,-2920.0,0.00018632,2]
[396257242,1764894645003,-1075.37382918,0.00018659,2]
[396257243,1764894645013,-2920.0,0.00018667,2]
[396257244,1764894645023,-2920.0,0.00018688,2]
[396257245,1764894645033,-1065.22927729,0.00018707,2]
[396257246,1764894645043,-2920.0,0.00018715,2]
[396257247,1764894645052,-2920.0,0.00018719,2]
[396257248,1764894645061,-5205.0,0.00018747,2]
[396257249,1764894645070,-499.99999912,0.000188,2]
[396257250,1764894645079,-5205.0,0.00018808,2]
[396257251,1764894645089,-399.12955785,0.000189,3]
[396257252,1764894645099,-5205.0,0.00019002,2]
[396257253,1764894645109,-157.04764859,0.000191,2]
[396257254,1764894645118,-533.5,0.000192,2]
[396257255,1764894645128,-629.5,0.000192,2]
[396257256,1764894645137,-579.93,0.000192,2]
[396257257,1764894645147,-1417.92,0.000192,2]
[396257258,1764894645156,-151.0,0.000192,2]